[Event "*** Titled Tuesday Blitz"]
[Site "Chess.com"]
[Date "2018.06.05"]
[Round "1"]
[White "Ar4uha"]
[Black "colegiodemadrid"]
[Result "1/2-1/2"]
[WhiteElo "2576"]
[BlackElo "2277"]
[TimeControl "180+2"]
[EndTime "13:11:08 PDT"]
[Termination "Game drawn - insufficient material"]

1. e4 {[%clk 0:02:56.3]} 1... e5 {[%clk 0:03:00.3]} 2. Nf3 {[%clk 0:02:47.1]}
2... Nc6 {[%clk 0:02:57.2]} 3. d4 {[%clk 0:02:47]} 3... exd4 {[%clk 0:02:57.5]}
4. Nxd4 {[%clk 0:02:48.9]} 4... Nf6 {[%clk 0:02:58.9]} 5. Nxc6 {[%clk
0:02:48.8]} 5... bxc6 {[%clk 0:03:00.4]} 6. Bd3 {[%clk 0:02:50.2]} 6... d5
{[%clk 0:02:59.5]} 7. O-O {[%clk 0:02:51.3]} 7... dxe4 {[%clk 0:02:50.2]} 8. Qe1
{[%clk 0:02:52.3]} 8... Be7 {[%clk 0:02:47]} 9. Bxe4 {[%clk 0:02:53.1]} 9...
Nxe4 {[%clk 0:02:48.2]} 10. Qxe4 {[%clk 0:02:55]} 10... O-O {[%clk 0:02:49.7]}
11. Qxc6 {[%clk 0:02:54]} 11... Rb8 {[%clk 0:02:51.1]} 12. Nc3 {[%clk
0:02:55.5]} 12... Bb7 {[%clk 0:02:52]} 13. Qc4 {[%clk 0:02:53.5]} 13... Bd6
{[%clk 0:02:52.1]} 14. Be3 {[%clk 0:02:39.8]} 14... Qf6 {[%clk 0:02:46.8]} 15.
Qg4 {[%clk 0:02:18.9]} 15... c5 {[%clk 0:02:20.4]} 16. Rad1 {[%clk 0:02:17.7]}
16... Qe5 {[%clk 0:02:20.8]} 17. g3 {[%clk 0:02:05]} 17... h5 {[%clk 0:02:21.5]}
18. Qf4 {[%clk 0:02:01.5]} 18... Qxf4 {[%clk 0:02:21.3]} 19. Bxf4 {[%clk
0:02:03.4]} 19... Bxf4 {[%clk 0:02:21.9]} 20. gxf4 {[%clk 0:02:05.3]} 20... Bf3
{[%clk 0:02:21.3]} 21. Rd3 {[%clk 0:02:03.2]} 21... Bg4 {[%clk 0:02:20.9]} 22.
b3 {[%clk 0:02:02.4]} 22... Bf5 {[%clk 0:02:18.5]} 23. Rd2 {[%clk 0:02:02.7]}
23... Rfe8 {[%clk 0:02:17.4]} 24. Nd5 {[%clk 0:01:57.6]} 24... Kf8 {[%clk
0:02:06.7]} 25. f3 {[%clk 0:01:56.6]} 25... c4 {[%clk 0:02:03.7]} 26. Kf2 {[%clk
0:01:53]} 26... Rbc8 {[%clk 0:02:00.4]} 27. Ne3 {[%clk 0:01:52.6]} 27... c3
{[%clk 0:01:53]} 28. Rd4 {[%clk 0:01:48.2]} 28... Bh3 {[%clk 0:01:31]} 29. Re1
{[%clk 0:01:45.8]} 29... Rcd8 {[%clk 0:01:22.7]} 30. Rxd8 {[%clk 0:01:35.5]}
30... Rxd8 {[%clk 0:01:23.5]} 31. f5 {[%clk 0:01:37.1]} 31... h4 {[%clk
0:01:22.1]} 32. f4 {[%clk 0:01:21.2]} 32... g6 {[%clk 0:01:05.8]} 33. fxg6
{[%clk 0:01:20.2]} 33... fxg6 {[%clk 0:01:07.3]} 34. Rd1 {[%clk 0:01:19.2]}
34... Re8 {[%clk 0:00:58.9]} 35. Rd3 {[%clk 0:01:18.7]} 35... Rc8 {[%clk
0:00:52.9]} 36. Nc4 {[%clk 0:01:17.9]} 36... Bf5 {[%clk 0:00:49.6]} 37. Rxc3
{[%clk 0:01:19.2]} 37... Rd8 {[%clk 0:00:51.2]} 38. Ke3 {[%clk 0:01:02.9]} 38...
Rd1 {[%clk 0:00:49.2]} 39. Nd2 {[%clk 0:00:55.5]} 39... Re1+ {[%clk 0:00:31.3]}
40. Kf2 {[%clk 0:00:51.2]} 40... Rc1 {[%clk 0:00:32.2]} 41. Nf3 {[%clk
0:00:49.7]} 41... h3 {[%clk 0:00:32.8]} 42. Nd4 {[%clk 0:00:50.8]} 42... Bg4
{[%clk 0:00:32.4]} 43. Rg3 {[%clk 0:00:48.7]} 43... Bd7 {[%clk 0:00:32.7]} 44.
Rxg6 {[%clk 0:00:45.6]} 44... Rd1 {[%clk 0:00:34.2]} 45. Nf3 {[%clk 0:00:42.7]}
45... Rc1 {[%clk 0:00:35.5]} 46. Rd6 {[%clk 0:00:39.9]} 46... Rxc2+ {[%clk
0:00:35.6]} 47. Rd2 {[%clk 0:00:41.1]} 47... Rc7 {[%clk 0:00:36.8]} 48. Ne5
{[%clk 0:00:40.6]} 48... Bf5 {[%clk 0:00:38]} 49. Ke3 {[%clk 0:00:40.4]} 49...
Rc3+ {[%clk 0:00:38.5]} 50. Kd4 {[%clk 0:00:41.7]} 50... Rc1 {[%clk 0:00:38.4]}
51. Nc4 {[%clk 0:00:41]} 51... Rf1 {[%clk 0:00:38.1]} 52. Ke5 {[%clk 0:00:41.8]}
52... Bg4 {[%clk 0:00:36.1]} 53. a4 {[%clk 0:00:18.7]} 53... Ke7 {[%clk
0:00:35.6]} 54. Ne3 {[%clk 0:00:17.5]} 54... Re1 {[%clk 0:00:35.4]} 55. Ke4
{[%clk 0:00:19]} 55... Bc8 {[%clk 0:00:32.2]} 56. f5 {[%clk 0:00:19.4]} 56...
Bxf5+ {[%clk 0:00:31.4]} 57. Kxf5 {[%clk 0:00:16.3]} 57... Rxe3 {[%clk
0:00:32.8]} 58. Rb2 {[%clk 0:00:16]} 58... a5 {[%clk 0:00:33.1]} 59. Kf4 {[%clk
0:00:15.4]} 59... Rc3 {[%clk 0:00:33.5]} 60. Kg4 {[%clk 0:00:16.8]} 60... Kd6
{[%clk 0:00:34.6]} 61. b4 {[%clk 0:00:16.9]} 61... Rc4+ {[%clk 0:00:32.4]} 62.
Kxh3 {[%clk 0:00:18.8]} 62... axb4 {[%clk 0:00:33.3]} 63. Kg3 {[%clk 0:00:17.2]}
63... Kc6 {[%clk 0:00:34.4]} 64. h4 {[%clk 0:00:18.6]} 64... Kb6 {[%clk
0:00:35.7]} 65. h5 {[%clk 0:00:20.1]} 65... Ka5 {[%clk 0:00:37.1]} 66. Ra2
{[%clk 0:00:20.2]} 66... b3 {[%clk 0:00:37.6]} 67. Ra1 {[%clk 0:00:21.7]} 67...
Rc6 {[%clk 0:00:31.6]} 68. Kg4 {[%clk 0:00:22.1]} 68... Kb4 {[%clk 0:00:32.5]}
69. Kg5 {[%clk 0:00:19.2]} 69... b2 {[%clk 0:00:31.4]} 70. Rb1 {[%clk
0:00:20.2]} 70... Kc3 {[%clk 0:00:31.5]} 71. h6 {[%clk 0:00:21]} 71... Rc8
{[%clk 0:00:30]} 72. Kf6 {[%clk 0:00:16.4]} 72... Kc2 {[%clk 0:00:30.2]} 73. Rh1
{[%clk 0:00:17.9]} 73... b1=Q {[%clk 0:00:29.6]} 74. Rxb1 {[%clk 0:00:19.2]}
74... Kxb1 {[%clk 0:00:31.1]} 75. h7 {[%clk 0:00:20.7]} 75... Kb2 {[%clk
0:00:32.5]} 76. Kg7 {[%clk 0:00:22.2]} 76... Kb3 {[%clk 0:00:33.9]} 77. a5
{[%clk 0:00:23.9]} 77... Kb4 {[%clk 0:00:35]} 78. a6 {[%clk 0:00:25.8]} 78...
Kb5 {[%clk 0:00:36.2]} 79. a7 {[%clk 0:00:27.7]} 79... Kb6 {[%clk 0:00:37.5]}
80. h8=Q {[%clk 0:00:29.6]} 80... Rxh8 {[%clk 0:00:37.6]} 81. Kxh8 {[%clk
0:00:31.5]} 81... Kxa7 {[%clk 0:00:38.8]} 1/2-1/2

[Event "*** Titled Tuesday Blitz"]
[Site "Chess.com"]
[Date "2018.06.05"]
[Round "1"]
[White "Jadeit90"]
[Black "Ravan_02"]
[Result "0-1"]
[WhiteElo "2153"]
[BlackElo "2486"]
[TimeControl "180+2"]
[EndTime "13:11:32 PDT"]
[Termination "Ravan_02 won by resignation"]

1. g3 {[%clk 0:02:58.2]} 1... Nf6 {[%clk 0:03:00.1]} 2. Bg2 {[%clk 0:02:51.7]}
2... d5 {[%clk 0:03:00.8]} 3. c4 {[%clk 0:02:52.6]} 3... c6 {[%clk 0:03:01.6]}
4. Nf3 {[%clk 0:02:53.4]} 4... Bf5 {[%clk 0:03:01.6]} 5. O-O {[%clk 0:02:54.2]}
5... e6 {[%clk 0:03:02.5]} 6. Nh4 {[%clk 0:02:53.6]} 6... Be4 {[%clk 0:03:02.5]}
7. f3 {[%clk 0:02:54.1]} 7... Bg6 {[%clk 0:03:03]} 8. Nxg6 {[%clk 0:02:55.4]}
8... hxg6 {[%clk 0:03:04.9]} 9. cxd5 {[%clk 0:02:56]} 9... cxd5 {[%clk
0:03:04.4]} 10. d4 {[%clk 0:02:57.3]} 10... Nc6 {[%clk 0:03:04.2]} 11. Nc3
{[%clk 0:02:58]} 11... Rc8 {[%clk 0:03:04.9]} 12. Be3 {[%clk 0:02:58.6]} 12...
Be7 {[%clk 0:03:01.8]} 13. Bf2 {[%clk 0:02:59.9]} 13... a6 {[%clk 0:02:44.5]}
14. e4 {[%clk 0:03:00.9]} 14... b5 {[%clk 0:02:45]} 15. a3 {[%clk 0:03:00.4]}
15... Na5 {[%clk 0:02:45]} 16. e5 {[%clk 0:02:53.9]} 16... Nd7 {[%clk
0:02:44.7]} 17. f4 {[%clk 0:02:55.3]} 17... Nc4 {[%clk 0:02:44.7]} 18. Qe2
{[%clk 0:02:55]} 18... Ndb6 {[%clk 0:02:24.3]} 19. g4 {[%clk 0:02:55.2]} 19...
Na4 {[%clk 0:01:48.7]} 20. Nd1 {[%clk 0:02:50]} 20... Na5 {[%clk 0:01:44.9]} 21.
Ne3 {[%clk 0:02:45.3]} 21... Bh4 {[%clk 0:01:43]} 22. Bg3 {[%clk 0:02:44.2]}
22... Bxg3 {[%clk 0:01:42.9]} 23. hxg3 {[%clk 0:02:45.6]} 23... Nb3 {[%clk
0:01:44.2]} 24. Rad1 {[%clk 0:02:44]} 24... Qb6 {[%clk 0:01:45.3]} 25. f5 {[%clk
0:02:42.9]} 25... gxf5 {[%clk 0:01:41.9]} 26. gxf5 {[%clk 0:02:43.7]} 26... Nxd4
{[%clk 0:01:42.8]} 27. Qf2 {[%clk 0:02:45.1]} 27... Nxf5 {[%clk 0:01:35.9]} 28.
Nxf5 {[%clk 0:02:46.2]} 28... exf5 {[%clk 0:01:25.3]} 29. Bxd5 {[%clk
0:02:35.3]} 29... g6 {[%clk 0:00:55.2]} 30. b3 {[%clk 0:02:15.2]} 30... Qxf2+
{[%clk 0:00:54.8]} 31. Rxf2 {[%clk 0:02:16.3]} 31... Nc3 {[%clk 0:00:54.6]} 32.
Rc2 {[%clk 0:02:02]} 32... Ke7 {[%clk 0:00:52.9]} 33. Bb7 {[%clk 0:01:40.3]}
33... Rc7 {[%clk 0:00:36.8]} 34. Rd3 {[%clk 0:01:31.4]} 34... Rxb7 {[%clk
0:00:32.1]} 35. Rdxc3 {[%clk 0:01:31.8]} 35... Rd8 {[%clk 0:00:30.1]} 36. Rc6
{[%clk 0:01:30.9]} 36... Rd5 {[%clk 0:00:18.4]} 37. e6 {[%clk 0:01:18.5]} 37...
fxe6 {[%clk 0:00:18.9]} 38. Rxa6 {[%clk 0:01:19.6]} 38... Rd6 {[%clk 0:00:18.7]}
39. Ra8 {[%clk 0:01:19.7]} 39... Rd3 {[%clk 0:00:19.5]} 40. Ra6 {[%clk
0:01:15.6]} 40... Rxg3+ {[%clk 0:00:20]} 41. Kf2 {[%clk 0:01:15.9]} 41... Rxb3
{[%clk 0:00:11.1]} 42. Re2 {[%clk 0:01:17.2]} 42... Kf7 {[%clk 0:00:09.3]} 43.
Rexe6 {[%clk 0:01:16.9]} 43... Rb2+ {[%clk 0:00:10.6]} 44. Kf3 {[%clk
0:01:15.7]} 44... Re7 {[%clk 0:00:10.1]} 45. Rf6+ {[%clk 0:01:11.9]} 45... Ke8
{[%clk 0:00:11]} 46. Rxg6 {[%clk 0:01:13.3]} 46... Re4 {[%clk 0:00:07.9]} 47.
Ra7 {[%clk 0:01:11.2]} 47... Rb3+ {[%clk 0:00:08.9]} 48. Kf2 {[%clk 0:01:12]}
48... Rb2+ {[%clk 0:00:10.3]} 49. Kf3 {[%clk 0:01:13.4]} 49... Rb3+ {[%clk
0:00:11.7]} 50. Kf2 {[%clk 0:01:14.9]} 50... Rf4+ {[%clk 0:00:12.3]} 51. Ke2
{[%clk 0:01:13.4]} 51... Re4+ {[%clk 0:00:13.1]} 52. Kf2 {[%clk 0:01:14.7]}
52... Kf8 {[%clk 0:00:11]} 53. Rh6 {[%clk 0:01:12.5]} 53... Rf4+ {[%clk
0:00:11.2]} 54. Ke2 {[%clk 0:01:12.3]} 54... Re4+ {[%clk 0:00:12.2]} 55. Kf2
{[%clk 0:01:13.6]} 55... Rb2+ {[%clk 0:00:13]} 56. Kf3 {[%clk 0:01:14.4]} 56...
Rb3+ {[%clk 0:00:08.8]} 57. Kf2 {[%clk 0:01:15.5]} 57... Rb2+ {[%clk 0:00:10.2]}
58. Kf3 {[%clk 0:01:17]} 58... Rb3+ {[%clk 0:00:11.3]} 59. Kf2 {[%clk
0:01:18.5]} 59... Re7 {[%clk 0:00:07]} 60. Rh8+ {[%clk 0:01:17.4]} 60... Kg7
{[%clk 0:00:07.8]} 61. Raa8 {[%clk 0:01:08.7]} 61... Rb2+ {[%clk 0:00:05.9]} 62.
Kf3 {[%clk 0:01:09.6]} 62... Kf6 {[%clk 0:00:07.4]} 63. Raf8+ {[%clk 0:01:04.2]}
63... Ke5 {[%clk 0:00:08.4]} 64. Rh5 {[%clk 0:01:04.6]} 64... Rb3+ {[%clk
0:00:09.5]} 65. Kf2 {[%clk 0:01:05.8]} 65... Ke4 {[%clk 0:00:06]} 66. Rh4+
{[%clk 0:01:01]} 66... Ke5 {[%clk 0:00:05.4]} 67. Rh5 {[%clk 0:01:02]} 67... Ke4
{[%clk 0:00:05.5]} 68. Rh4+ {[%clk 0:01:03.3]} 68... Kd3 {[%clk 0:00:04.4]} 69.
Rxf5 {[%clk 0:01:00.8]} 69... Rb2+ {[%clk 0:00:04.7]} 70. Kf3 {[%clk 0:00:59.6]}
70... Re3+ {[%clk 0:00:05.3]} 71. Kg4 {[%clk 0:00:50.4]} 71... Re4+ {[%clk
0:00:06.6]} 72. Kg5 {[%clk 0:00:51.8]} 72... Rxh4 {[%clk 0:00:05.1]} 73. Kxh4
{[%clk 0:00:53.7]} 73... Kc3 {[%clk 0:00:06.5]} 74. Rf4 {[%clk 0:00:51.9]} 74...
Kb3 {[%clk 0:00:06.6]} 75. Rf3+ {[%clk 0:00:52.7]} 75... Ka4 {[%clk 0:00:07.7]}
76. Kg4 {[%clk 0:00:46.4]} 76... Rb3 {[%clk 0:00:07.2]} 77. Rf8 {[%clk
0:00:42.3]} 77... Kxa3 {[%clk 0:00:08.1]} 78. Kf4 {[%clk 0:00:44.2]} 78... b4
{[%clk 0:00:08.2]} 79. Ke4 {[%clk 0:00:45.5]} 79... Rc3 {[%clk 0:00:09.4]} 80.
Kd4 {[%clk 0:00:46.6]} 80... Rc7 {[%clk 0:00:10.3]} 81. Ra8+ {[%clk 0:00:45.4]}
81... Kb2 {[%clk 0:00:11.1]} 82. Kd3 {[%clk 0:00:44.7]} 82... b3 {[%clk
0:00:12]} 83. Kd2 {[%clk 0:00:45.9]} 83... Kb1 {[%clk 0:00:12.9]} 84. Kd1 {[%clk
0:00:47]} 84... b2 {[%clk 0:00:13.8]} 85. Ra7 {[%clk 0:00:48.5]} 85... Rxa7
{[%clk 0:00:14.2]} 0-1

[Event "*** Titled Tuesday Blitz"]
[Site "Chess.com"]
[Date "2018.06.05"]
[Round "1"]
[White "Siemba"]
[Black "djano"]
[Result "1/2-1/2"]
[WhiteElo "2032"]
[BlackElo "2428"]
[TimeControl "180+2"]
[EndTime "13:12:25 PDT"]
[Termination "Game drawn by repetition"]

1. e4 {[%clk 0:03:00.1]} 1... c5 {[%clk 0:02:59.7]} 2. Nf3 {[%clk 0:02:58.9]}
2... d6 {[%clk 0:03:00.4]} 3. d4 {[%clk 0:03:00.3]} 3... cxd4 {[%clk 0:03:00.2]}
4. Nxd4 {[%clk 0:03:02.2]} 4... Nf6 {[%clk 0:03:01.4]} 5. Nc3 {[%clk 0:02:58.5]}
5... a6 {[%clk 0:03:02]} 6. Be3 {[%clk 0:02:57.8]} 6... Ng4 {[%clk 0:03:01.9]}
7. Bc1 {[%clk 0:02:58.2]} 7... Nf6 {[%clk 0:03:01.5]} 8. f3 {[%clk 0:02:59.2]}
8... e5 {[%clk 0:03:01.1]} 9. Nb3 {[%clk 0:03:00.3]} 9... Be6 {[%clk 0:03:01.7]}
10. Be3 {[%clk 0:03:01.7]} 10... Be7 {[%clk 0:02:58.9]} 11. Qd2 {[%clk
0:03:02.5]} 11... Nbd7 {[%clk 0:02:57.7]} 12. g4 {[%clk 0:03:02.3]} 12... O-O
{[%clk 0:02:58.1]} 13. O-O-O {[%clk 0:03:03.2]} 13... Nb6 {[%clk 0:02:56.2]} 14.
h4 {[%clk 0:02:49.5]} 14... Rc8 {[%clk 0:02:52.5]} 15. h5 {[%clk 0:02:46.7]}
15... Nc4 {[%clk 0:02:39]} 16. Bxc4 {[%clk 0:02:45]} 16... Rxc4 {[%clk
0:02:40.9]} 17. g5 {[%clk 0:02:45.1]} 17... Nd7 {[%clk 0:02:41.5]} 18. g6 {[%clk
0:02:37.5]} 18... b5 {[%clk 0:02:30]} 19. h6 {[%clk 0:02:31.4]} 19... fxg6
{[%clk 0:02:29.7]} 20. hxg7 {[%clk 0:02:31.7]} 20... Rxf3 {[%clk 0:02:30]} 21.
Nd5 {[%clk 0:02:24.1]} 21... Nf6 {[%clk 0:02:19.3]} 22. Bb6 {[%clk 0:02:07.8]}
22... Qd7 {[%clk 0:02:10.1]} 23. Nxf6+ {[%clk 0:01:55.1]} 23... Bxf6 {[%clk
0:01:58.3]} 24. Qxd6 {[%clk 0:01:55.9]} 24... Qxd6 {[%clk 0:01:13.1]} 25. Rxd6
{[%clk 0:01:57.8]} 25... Bf7 {[%clk 0:01:14.5]} 26. Nd2 {[%clk 0:01:06.3]} 26...
Bg5 {[%clk 0:01:15.2]} 27. Rd8+ {[%clk 0:00:47.4]} 27... Bxd8 {[%clk 0:01:12.8]}
28. Bxd8 {[%clk 0:00:49.3]} 28... Rf2 {[%clk 0:01:00.9]} 29. Nxc4 {[%clk
0:00:50]} 29... bxc4 {[%clk 0:01:02.2]} 30. Bc7 {[%clk 0:00:50.6]} 30... Kxg7
{[%clk 0:00:49.6]} 31. Bxe5+ {[%clk 0:00:51.3]} 31... Kg8 {[%clk 0:00:50.9]} 32.
Bd4 {[%clk 0:00:36.9]} 32... Rf4 {[%clk 0:00:46.8]} 33. Re1 {[%clk 0:00:36.9]}
33... Be6 {[%clk 0:00:48]} 34. Be5 {[%clk 0:00:31.4]} 34... Rg4 {[%clk 0:00:44]}
35. Kd2 {[%clk 0:00:31.3]} 35... h5 {[%clk 0:00:42.8]} 36. Kc3 {[%clk
0:00:31.5]} 36... h4 {[%clk 0:00:44]} 37. Kd4 {[%clk 0:00:17.7]} 37... h3 {[%clk
0:00:44.2]} 38. Rh1 {[%clk 0:00:18.6]} 38... Rg2 {[%clk 0:00:43.4]} 39. Kc5
{[%clk 0:00:17.2]} 39... Rxc2 {[%clk 0:00:42]} 40. Kd6 {[%clk 0:00:18.3]} 40...
Bg4 {[%clk 0:00:42.7]} 41. Ke7 {[%clk 0:00:18]} 41... Re2 {[%clk 0:00:37]} 42.
Kf6 {[%clk 0:00:11.3]} 42... Rxe4 {[%clk 0:00:38.1]} 43. Rg1 {[%clk 0:00:12.5]}
43... Bf5 {[%clk 0:00:34.9]} 44. Rd1 {[%clk 0:00:07.7]} 44... Kh7 {[%clk
0:00:31.5]} 45. Rd8 {[%clk 0:00:05.3]} 45... Rxe5 {[%clk 0:00:21.2]} 46. Kxe5
{[%clk 0:00:06.1]} 46... Bg4 {[%clk 0:00:20.9]} 47. Rd2 {[%clk 0:00:06.9]} 47...
Bf3 {[%clk 0:00:22]} 48. Kf4 {[%clk 0:00:08.2]} 48... Bg2 {[%clk 0:00:22.5]} 49.
Kg3 {[%clk 0:00:09.8]} 49... Be4 {[%clk 0:00:20.9]} 50. Kxh3 {[%clk 0:00:09.9]}
50... Bd3 {[%clk 0:00:22.4]} 51. Kg4 {[%clk 0:00:10.7]} 51... Kg7 {[%clk
0:00:23.5]} 52. Kg5 {[%clk 0:00:11.4]} 52... Kf7 {[%clk 0:00:24.7]} 53. b3
{[%clk 0:00:10.4]} 53... Ke6 {[%clk 0:00:24.3]} 54. bxc4 {[%clk 0:00:11.5]}
54... Bxc4 {[%clk 0:00:25.7]} 55. Kxg6 {[%clk 0:00:12.1]} 55... Ke5 {[%clk
0:00:24.9]} 56. Kg5 {[%clk 0:00:13.3]} 56... Ke4 {[%clk 0:00:26.4]} 57. Kf6
{[%clk 0:00:11.3]} 57... Ke3 {[%clk 0:00:27]} 58. Rh2 {[%clk 0:00:12.4]} 58...
Kd3 {[%clk 0:00:28.5]} 59. Ke5 {[%clk 0:00:13.6]} 59... Kc3 {[%clk 0:00:29.9]}
60. Kd6 {[%clk 0:00:12.8]} 60... Kb4 {[%clk 0:00:30.8]} 61. Kc6 {[%clk
0:00:13.6]} 61... Ka3 {[%clk 0:00:32]} 62. Kb6 {[%clk 0:00:13.7]} 62... Bxa2
{[%clk 0:00:32.7]} 63. Kxa6 {[%clk 0:00:15.2]} 63... Bc4+ {[%clk 0:00:32.6]} 64.
Ka5 {[%clk 0:00:16.6]} 64... Bb3 {[%clk 0:00:32.4]} 65. Rh3 {[%clk 0:00:17.3]}
65... Kb2 {[%clk 0:00:33.5]} 66. Kb4 {[%clk 0:00:18.7]} 66... Bc2 {[%clk
0:00:33.9]} 67. Rh2 {[%clk 0:00:20.2]} 67... Kb1 {[%clk 0:00:27.2]} 68. Kc3
{[%clk 0:00:18.1]} 68... Be4 {[%clk 0:00:28.3]} 69. Re2 {[%clk 0:00:18.2]} 69...
Bg6 {[%clk 0:00:23.7]} 70. Kb4 {[%clk 0:00:15.9]} 70... Ka1 {[%clk 0:00:23.5]}
71. Rf2 {[%clk 0:00:12]} 71... Bd3 {[%clk 0:00:22.5]} 72. Kc3 {[%clk 0:00:12.6]}
72... Bg6 {[%clk 0:00:21.5]} 73. Kb3 {[%clk 0:00:13.3]} 73... Bb1 {[%clk
0:00:21.4]} 74. Rg2 {[%clk 0:00:06]} 74... Be4 {[%clk 0:00:20.5]} 75. Rg1+
{[%clk 0:00:05.9]} 75... Bb1 {[%clk 0:00:21.4]} 76. Rg5 {[%clk 0:00:07.8]} 76...
Bd3 {[%clk 0:00:21]} 77. Kc3 {[%clk 0:00:08.1]} 77... Be4 {[%clk 0:00:20.5]} 78.
Re5 {[%clk 0:00:08.5]} 78... Bg6 {[%clk 0:00:20.4]} 79. Kd2 {[%clk 0:00:07.7]}
79... Bh7 {[%clk 0:00:19.3]} 80. Kc1 {[%clk 0:00:06.1]} 80... Bg8 {[%clk
0:00:18.7]} 81. Ra5+ {[%clk 0:00:05.3]} 81... Ba2 {[%clk 0:00:18.4]} 82. Rb5
{[%clk 0:00:06.3]} 82... Bc4 {[%clk 0:00:18.7]} 83. Rb4 {[%clk 0:00:07.2]} 83...
Ba2 {[%clk 0:00:19.3]} 84. Kc2 {[%clk 0:00:07.7]} 84... Be6 {[%clk 0:00:19.8]}
85. Ra4+ {[%clk 0:00:08.9]} 85... Ba2 {[%clk 0:00:20.7]} 86. Kc3 {[%clk
0:00:10.1]} 86... Kb1 {[%clk 0:00:22]} 87. Rb4+ {[%clk 0:00:11.5]} 87... Ka1
{[%clk 0:00:22.9]} 88. Rb2 {[%clk 0:00:13.4]} 88... Be6 {[%clk 0:00:22.9]} 89.
Rd2 {[%clk 0:00:12.5]} 89... Bf5 {[%clk 0:00:23.6]} 90. Rd1+ {[%clk 0:00:13.5]}
90... Ka2 {[%clk 0:00:23.5]} 91. Rc1 {[%clk 0:00:13.2]} 91... Bg6 {[%clk
0:00:23.6]} 92. Rd1 {[%clk 0:00:14.2]} 92... Bf5 {[%clk 0:00:24.7]} 93. Rc1
{[%clk 0:00:15.7]} 93... Bg6 {[%clk 0:00:25.6]} 94. Rd1 {[%clk 0:00:17.3]} 94...
Bf5 {[%clk 0:00:27.1]} 95. Rc1 {[%clk 0:00:18.6]} 95... Bg6 {[%clk 0:00:28.6]}
1/2-1/2